[Event "Titled Tuesday Blitz August 02 Late 2022"]
[White "Kamsky, Gata"]
[Black "Nazari, Arad"]
[WhiteFideId "2000024"]
[BlackFideId "12577324"]
[WhiteElo "2645"]
[BlackElo "2129"]
[Result "0-1"]
[Round "09"]
[TimeControl "180+1"]
[Date "2022.08.02"]
[WhiteClock "0:00:07"]
[BlackClock "0:00:07"]

1. e4 {[%clk 0:03:00]}  e5 {[%clk 0:03:00]} 2. Nf3 {[%clk 0:03:00]}  Nc6 {[%clk 0:03:00]} 3. Bb5 {[%clk 0:02:58]}  a6 {[%clk 0:03:00]} 4. Ba4 {[%clk 0:02:58]}  Nf6 {[%clk 0:03:00]} 5. O-O {[%clk 0:02:58]}  Nxe4 {[%clk 0:03:01]} 6. d4 {[%clk 0:02:54]}  b5 {[%clk 0:03:01]} 7. Bb3 {[%clk 0:02:53]}  d5 {[%clk 0:03:01]} 8. dxe5 {[%clk 0:02:54]}  Be6 {[%clk 0:03:02]} 9. Qe2 {[%clk 0:02:54]}  Nc5 {[%clk 0:03:02]} 10. Rd1 {[%clk 0:02:45]}  Nxb3 {[%clk 0:03:01]} 11. axb3 {[%clk 0:02:32]}  Be7 {[%clk 0:02:58]} 12. c3 {[%clk 0:02:20]}  O-O {[%clk 0:02:56]} 13. h3 {[%clk 0:02:16]}  Qd7 {[%clk 0:02:55]} 14. Bf4 {[%clk 0:02:11]}  f6 {[%clk 0:02:54]} 15. Bg3 {[%clk 0:01:50]}  fxe5 {[%clk 0:02:19]} 16. Nxe5 {[%clk 0:01:49]}  Nxe5 {[%clk 0:02:19]} 17. Qxe5 {[%clk 0:01:48]}  Bd6 {[%clk 0:01:49]} 18. Qe3 {[%clk 0:01:41]}  Rae8 {[%clk 0:01:46]} 19. Bxd6 {[%clk 0:01:41]}  Qxd6 {[%clk 0:01:46]} 20. Qg3 {[%clk 0:01:41]}  Qxg3 {[%clk 0:01:34]} 21. fxg3 {[%clk 0:01:40]}  Bc8 {[%clk 0:01:35]} 22. Nd2 {[%clk 0:01:30]}  Re2 {[%clk 0:01:34]} 23. Nf3 {[%clk 0:01:29]}  Bxh3 {[%clk 0:00:58]} 24. Rd2 {[%clk 0:01:27]}  Rxd2 {[%clk 0:00:57]} 25. Nxd2 {[%clk 0:01:27]}  Bc8 {[%clk 0:00:57]} 26. b4 {[%clk 0:01:25]}  Re8 {[%clk 0:00:54]} 27. Kf2 {[%clk 0:01:24]}  Bg4 {[%clk 0:00:48]} 28. Re1 {[%clk 0:01:19]}  Rxe1 {[%clk 0:00:42]} 29. Kxe1 {[%clk 0:01:19]}  Kf7 {[%clk 0:00:43]} 30. Nb3 {[%clk 0:01:14]}  Kf6 {[%clk 0:00:40]} 31. Kf2 {[%clk 0:01:14]}  Ke5 {[%clk 0:00:36]} 32. Ke3 {[%clk 0:01:12]}  g5 {[%clk 0:00:33]} 33. Nc5 {[%clk 0:01:09]}  Bc8 {[%clk 0:00:31]} 34. Nb3 {[%clk 0:01:04]}  h5 {[%clk 0:00:30]} 35. Nd4 {[%clk 0:01:02]}  Bg4 {[%clk 0:00:29]} 36. Nc6+ {[%clk 0:00:59]}  Kd6 {[%clk 0:00:29]} 37. Na5 {[%clk 0:00:57]}  Ke5 {[%clk 0:00:28]} 38. Nc6+ {[%clk 0:00:55]}  Kd6 {[%clk 0:00:28]} 39. Na5 {[%clk 0:00:55]}  Bf5 {[%clk 0:00:28]} 40. Nb7+ {[%clk 0:00:44]}  Ke5 {[%clk 0:00:29]} 41. Nc5 {[%clk 0:00:45]}  Be4 {[%clk 0:00:23]} 42. Nxa6 {[%clk 0:00:43]}  c6 {[%clk 0:00:15]} 43. Nb8 {[%clk 0:00:36]}  Kd6 {[%clk 0:00:11]} 44. Kf2 {[%clk 0:00:32]}  d4 {[%clk 0:00:11]} 45. cxd4 {[%clk 0:00:29]}  Kd5 {[%clk 0:00:12]} 46. Ke3 {[%clk 0:00:26]}  Bxg2 {[%clk 0:00:12]} 47. Nd7 {[%clk 0:00:25]}  h4 {[%clk 0:00:12]} 48. gxh4 {[%clk 0:00:19]}  gxh4 {[%clk 0:00:13]} 49. Kf2 {[%clk 0:00:14]}  h3 {[%clk 0:00:13]} 50. Nc5 {[%clk 0:00:12]}  Kxd4 {[%clk 0:00:13]} 51. Na6 {[%clk 0:00:11]}  Kc4 {[%clk 0:00:12]} 52. Kg3 {[%clk 0:00:11]}  Kb3 {[%clk 0:00:13]} 53. Kh2 {[%clk 0:00:12]}  Kxb2 {[%clk 0:00:13]} 54. Kg3 {[%clk 0:00:12]}  Kc3 {[%clk 0:00:13]} 55. Kh2 {[%clk 0:00:12]}  Kc4 {[%clk 0:00:14]} 56. Kg3 {[%clk 0:00:13]}  Bd5 {[%clk 0:00:08]} 57. Kxh3 {[%clk 0:00:12]}  Be6+ {[%clk 0:00:09]} 58. Kg3 {[%clk 0:00:12]}  Bc8 {[%clk 0:00:10]} 59. Nb8 {[%clk 0:00:12]}  Bb7 {[%clk 0:00:10]} 60. Kf4 {[%clk 0:00:11]}  Kxb4 {[%clk 0:00:10]} 61. Ke3 {[%clk 0:00:11]}  c5 {[%clk 0:00:11]} 62. Kd2 {[%clk 0:00:11]}  Kb3 {[%clk 0:00:10]} 63. Nd7 {[%clk 0:00:11]}  Kb4 {[%clk 0:00:10]} 64. Ne5 {[%clk 0:00:11]}  c4 {[%clk 0:00:10]} 65. Kc2 {[%clk 0:00:10]}  Be4+ {[%clk 0:00:09]} 66. Kb2 {[%clk 0:00:11]}  c3+ {[%clk 0:00:09]} 67. Kc1 {[%clk 0:00:11]}  Kb3 {[%clk 0:00:07]} 68. Nd7 {[%clk 0:00:11]}  Kc4 {[%clk 0:00:06]} 69. Ne5+ {[%clk 0:00:11]}  Kd4 {[%clk 0:00:06]} 70. Nf7 {[%clk 0:00:08]}  b4 {[%clk 0:00:07]} 71. Nd6 {[%clk 0:00:09]}  Bd3 {[%clk 0:00:07]} 72. Nb7 {[%clk 0:00:07]}  b3 {[%clk 0:00:07]} 0-1


[Site "https://www.chess.com"]

[Event "Titled Tuesday Blitz August 02 Late 2022"]
[White "Leenhouts, Koen"]
[Black "Ernst, Sipke"]
[WhiteFideId "1008439"]
[BlackFideId "1004689"]
[WhiteElo "2409"]
[BlackElo "2436"]
[Result "0-1"]
[Round "09"]
[TimeControl "180+1"]
[Date "2022.08.02"]
[WhiteClock "0:00:15"]
[BlackClock "0:00:32"]

1. d4 {[%clk 0:02:21]}  d5 {[%clk 0:02:58]} 2. c4 {[%clk 0:02:21]}  e6 {[%clk 0:02:58]} 3. Nf3 {[%clk 0:02:20]}  a6 {[%clk 0:02:58]} 4. Bg5 {[%clk 0:02:14]}  Be7 {[%clk 0:02:56]} 5. Bxe7 {[%clk 0:02:14]}  Qxe7 {[%clk 0:02:57]} 6. Nbd2 {[%clk 0:02:12]}  Nf6 {[%clk 0:02:57]} 7. e3 {[%clk 0:02:09]}  Nc6 {[%clk 0:02:57]} 8. Bd3 {[%clk 0:02:06]}  O-O {[%clk 0:02:55]} 9. O-O {[%clk 0:02:06]}  Rd8 {[%clk 0:02:56]} 10. Qe2 {[%clk 0:02:04]}  e5 {[%clk 0:02:56]} 11. dxe5 {[%clk 0:02:02]}  Nxe5 {[%clk 0:02:56]} 12. Nxe5 {[%clk 0:02:01]}  Qxe5 {[%clk 0:02:57]} 13. Nf3 {[%clk 0:01:54]}  Qe7 {[%clk 0:02:57]} 14. h3 {[%clk 0:01:51]}  dxc4 {[%clk 0:02:53]} 15. Bxc4 {[%clk 0:01:49]}  Ne4 {[%clk 0:02:53]} 16. Rfd1 {[%clk 0:01:42]}  Bf5 {[%clk 0:02:48]} 17. Nd4 {[%clk 0:01:35]}  Bd7 {[%clk 0:02:46]} 18. Rac1 {[%clk 0:01:29]}  c5 {[%clk 0:02:45]} 19. Nb3 {[%clk 0:01:14]}  Rac8 {[%clk 0:02:19]} 20. Bd5 {[%clk 0:01:13]}  Bf5 {[%clk 0:01:45]} 21. Qf3 {[%clk 0:00:50]}  Bg6 {[%clk 0:01:45]} 22. Bxe4 {[%clk 0:00:45]}  Bxe4 {[%clk 0:01:38]} 23. Qf4 {[%clk 0:00:42]}  b6 {[%clk 0:01:31]} 24. Nd2 {[%clk 0:00:31]}  Bd5 {[%clk 0:01:25]} 25. Nc4 {[%clk 0:00:28]}  Bxc4 {[%clk 0:01:06]} 26. Qxc4 {[%clk 0:00:28]}  Rxd1+ {[%clk 0:01:02]} 27. Rxd1 {[%clk 0:00:28]}  b5 {[%clk 0:01:03]} 28. Qd5 {[%clk 0:00:28]}  c4 {[%clk 0:00:45]} 29. e4 {[%clk 0:00:28]}  g6 {[%clk 0:00:42]} 30. e5 {[%clk 0:00:27]}  Rc5 {[%clk 0:00:36]} 31. Qd6 {[%clk 0:00:23]}  Rxe5 {[%clk 0:00:34]} 32. Qxa6 {[%clk 0:00:20]}  Re1+ {[%clk 0:00:34]} 33. Rxe1 {[%clk 0:00:20]}  Qxe1+ {[%clk 0:00:34]} 34. Kh2 {[%clk 0:00:21]}  Qe5+ {[%clk 0:00:35]} 35. g3 {[%clk 0:00:20]}  Qxb2 {[%clk 0:00:35]} 36. a4 {[%clk 0:00:15]}  Qxf2+ {[%clk 0:00:32]} 0-1


[Site "https://www.chess.com"]

[Event "Titled Tuesday Blitz August 02 Late 2022"]
[White "Mardov, Dimitar"]
[Black "Ladopoulos, Dimitrios"]
[WhiteFideId "30919495"]
[BlackFideId "4239580"]
[WhiteElo "2185"]
[BlackElo "2195"]
[Result "1-0"]
[Round "09"]
[TimeControl "180+1"]
[Date "2022.08.02"]
[WhiteClock "0:01:51"]
[BlackClock "0:01:36"]

1. d4 {[%clk 0:03:00]}  e6 {[%clk 0:02:55]} 2. c4 {[%clk 0:03:00]}  b6 {[%clk 0:02:52]} 3. Nc3 {[%clk 0:02:59]}  Bb7 {[%clk 0:02:50]} 4. Nf3 {[%clk 0:03:00]}  Bb4 {[%clk 0:02:49]} 5. Bd2 {[%clk 0:02:58]}  f5 {[%clk 0:02:49]} 6. e3 {[%clk 0:02:58]}  Nf6 {[%clk 0:02:38]} 7. Bd3 {[%clk 0:02:58]}  Bxc3 {[%clk 0:02:36]} 8. Bxc3 {[%clk 0:02:58]}  O-O {[%clk 0:02:36]} 9. O-O {[%clk 0:02:58]}  d6 {[%clk 0:02:36]} 10. Rc1 {[%clk 0:02:58]}  Nbd7 {[%clk 0:02:35]} 11. d5 {[%clk 0:02:49]}  g6 {[%clk 0:02:24]} 12. Nd4 {[%clk 0:02:31]}  Nc5 {[%clk 0:02:02]} 13. b4 {[%clk 0:02:29]}  e5 {[%clk 0:02:02]} 14. bxc5 {[%clk 0:02:18]}  exd4 {[%clk 0:02:01]} 15. exd4 {[%clk 0:02:05]}  bxc5 {[%clk 0:01:51]} 16. dxc5 {[%clk 0:02:06]}  dxc5 {[%clk 0:01:51]} 17. Rb1 {[%clk 0:01:59]}  Bc8 {[%clk 0:01:44]} 18. Qf3 {[%clk 0:01:59]}  Bd7 {[%clk 0:01:37]} 19. Qe3 {[%clk 0:01:52]}  Ne8 {[%clk 0:01:36]} 20. Qxc5 {[%clk 0:01:51]} 1-0


[Site "https://www.chess.com"]

[Event "Titled Tuesday Blitz August 02 Late 2022"]
[White "Pakleza, Zbigniew"]
[Black "Ekdyshman, Mikhail"]
[WhiteFideId "1119290"]
[BlackFideId "4149416"]
[WhiteElo "2467"]
[BlackElo "2146"]
[Result "1-0"]
[Round "09"]
[TimeControl "180+1"]
[Date "2022.08.02"]
[WhiteClock "0:00:10"]
[BlackClock "0:00:08"]

1. d3 {[%clk 0:02:57]}  Nf6 {[%clk 0:02:59]} 2. e4 {[%clk 0:02:55]}  d6 {[%clk 0:02:58]} 3. f4 {[%clk 0:02:49]}  c5 {[%clk 0:02:58]} 4. Nf3 {[%clk 0:02:48]}  Nc6 {[%clk 0:02:58]} 5. g3 {[%clk 0:02:47]}  g6 {[%clk 0:02:59]} 6. Bg2 {[%clk 0:02:48]}  Bg7 {[%clk 0:02:59]} 7. O-O {[%clk 0:02:46]}  O-O {[%clk 0:03:00]} 8. c3 {[%clk 0:02:42]}  Rb8 {[%clk 0:03:00]} 9. a4 {[%clk 0:02:41]}  a6 {[%clk 0:03:00]} 10. h3 {[%clk 0:02:34]}  b5 {[%clk 0:03:00]} 11. axb5 {[%clk 0:02:34]}  axb5 {[%clk 0:03:00]} 12. Be3 {[%clk 0:02:24]}  b4 {[%clk 0:03:00]} 13. Nbd2 {[%clk 0:02:23]}  bxc3 {[%clk 0:02:59]} 14. bxc3 {[%clk 0:02:24]}  Ne8 {[%clk 0:02:57]} 15. d4 {[%clk 0:02:11]}  cxd4 {[%clk 0:02:55]} 16. cxd4 {[%clk 0:02:12]}  d5 {[%clk 0:02:53]} 17. e5 {[%clk 0:02:10]}  Bf5 {[%clk 0:02:39]} 18. Nb3 {[%clk 0:01:56]}  Nb4 {[%clk 0:02:33]} 19. Qd2 {[%clk 0:01:24]}  Nc2 {[%clk 0:02:23]} 20. Nc5 {[%clk 0:01:24]}  Nxa1 {[%clk 0:02:21]} 21. Rxa1 {[%clk 0:01:25]}  Nc7 {[%clk 0:02:19]} 22. g4 {[%clk 0:01:23]}  Be4 {[%clk 0:02:14]} 23. Nxe4 {[%clk 0:01:16]}  dxe4 {[%clk 0:02:15]} 24. Ng5 {[%clk 0:01:16]}  Nd5 {[%clk 0:01:28]} 25. Nxe4 {[%clk 0:01:10]}  Rb3 {[%clk 0:01:20]} 26. Bf2 {[%clk 0:01:06]}  e6 {[%clk 0:01:11]} 27. Nd6 {[%clk 0:00:55]}  Qb6 {[%clk 0:01:10]} 28. Ra2 {[%clk 0:00:40]}  Bh6 {[%clk 0:01:04]} 29. Bxd5 {[%clk 0:00:39]}  exd5 {[%clk 0:01:02]} 30. Kg2 {[%clk 0:00:39]}  Rb8 {[%clk 0:00:57]} 31. Qa5 {[%clk 0:00:31]}  Qxa5 {[%clk 0:00:20]} 32. Rxa5 {[%clk 0:00:32]}  Bxf4 {[%clk 0:00:21]} 33. Rxd5 {[%clk 0:00:32]}  Rb2 {[%clk 0:00:16]} 34. Ne4 {[%clk 0:00:20]}  Be3 {[%clk 0:00:14]} 35. Rd7 {[%clk 0:00:08]}  Rxf2+ {[%clk 0:00:12]} 36. Nxf2 {[%clk 0:00:09]}  Rb2 {[%clk 0:00:11]} 37. Kf3 {[%clk 0:00:09]}  Bxf2 {[%clk 0:00:12]} 38. d5 {[%clk 0:00:10]}  Bh4 {[%clk 0:00:07]} 39. d6 {[%clk 0:00:05]}  Rb3+ {[%clk 0:00:08]} 40. Ke4 {[%clk 0:00:05]}  Kf8 {[%clk 0:00:05]} 41. Ra7 {[%clk 0:00:04]}  Rb1 {[%clk 0:00:05]} 42. Ra8+ {[%clk 0:00:02]}  Kg7 {[%clk 0:00:05]} 43. Ra7 {[%clk 0:00:03]}  Rd1 {[%clk 0:00:05]} 44. Rb7 {[%clk 0:00:02]}  Bg5 {[%clk 0:00:06]} 45. Ra7 {[%clk 0:00:02]}  Re1+ {[%clk 0:00:06]} 46. Kd5 {[%clk 0:00:02]}  Rd1+ {[%clk 0:00:06]} 47. Ke4 {[%clk 0:00:03]}  Rc1 {[%clk 0:00:07]} 48. Rb7 {[%clk 0:00:03]}  Rc3 {[%clk 0:00:07]} 49. Rc7 {[%clk 0:00:03]}  Re3+ {[%clk 0:00:07]} 50. Kd5 {[%clk 0:00:03]}  Rxh3 {[%clk 0:00:07]} 51. e6 {[%clk 0:00:03]}  Rd3+ {[%clk 0:00:07]} 52. Kc6 {[%clk 0:00:04]}  Rc3+ {[%clk 0:00:07]} 53. Kd7 {[%clk 0:00:04]}  Re3 {[%clk 0:00:06]} 54. e7 {[%clk 0:00:05]}  Bf4 {[%clk 0:00:06]} 55. Rc6 {[%clk 0:00:04]}  Kf6 {[%clk 0:00:05]} 56. e8=Q {[%clk 0:00:03]}  Rxe8 {[%clk 0:00:05]} 57. Kxe8 {[%clk 0:00:04]}  Bxd6 {[%clk 0:00:05]} 58. Rxd6+ {[%clk 0:00:05]}  Kg5 {[%clk 0:00:06]} 59. Kxf7 {[%clk 0:00:05]}  Kxg4 {[%clk 0:00:06]} 60. Kg7 {[%clk 0:00:06]}  h5 {[%clk 0:00:05]} 61. Kxg6 {[%clk 0:00:06]}  h4 {[%clk 0:00:06]} 62. Rd4+ {[%clk 0:00:07]}  Kg3 {[%clk 0:00:06]} 63. Kg5 {[%clk 0:00:08]}  h3 {[%clk 0:00:07]} 64. Rd3+ {[%clk 0:00:08]}  Kg2 {[%clk 0:00:08]} 65. Kg4 {[%clk 0:00:09]}  h2 {[%clk 0:00:08]} 66. Rd2+ {[%clk 0:00:10]}  Kf1 {[%clk 0:00:08]} 67. Kg3 {[%clk 0:00:09]}  h1=Q {[%clk 0:00:08]} 68. Rd1+ {[%clk 0:00:09]}  Ke2 {[%clk 0:00:08]} 69. Rxh1 {[%clk 0:00:10]}  Ke3 {[%clk 0:00:08]} 70. Rh2 {[%clk 0:00:10]} 1-0


[Site "https://www.chess.com"]

[Event "Titled Tuesday Blitz August 02 Late 2022"]
[White "Perera Alfonso, Rene Humberto"]
[Black "Fonseca Manrique, Enrique"]
[WhiteFideId "3514722"]
[BlackFideId "5114330"]
[WhiteElo "2313"]
[BlackElo "2513"]
[Result "1-0"]
[Round "09"]
[TimeControl "180+1"]
[Date "2022.08.02"]
[WhiteClock "0:01:00"]
[BlackClock "0:00:24"]

1. e4 {[%clk 0:03:00]}  c5 {[%clk 0:03:00]} 2. Nf3 {[%clk 0:02:59]}  e6 {[%clk 0:03:00]} 3. d4 {[%clk 0:03:00]}  cxd4 {[%clk 0:03:01]} 4. Nxd4 {[%clk 0:03:00]}  Nc6 {[%clk 0:03:02]} 5. Nc3 {[%clk 0:03:00]}  Qc7 {[%clk 0:03:02]} 6. g3 {[%clk 0:03:01]}  a6 {[%clk 0:03:01]} 7. Bg2 {[%clk 0:03:01]}  Bc5 {[%clk 0:03:02]} 8. Nb3 {[%clk 0:03:00]}  Be7 {[%clk 0:03:00]} 9. O-O {[%clk 0:03:01]}  d6 {[%clk 0:03:00]} 10. f4 {[%clk 0:03:01]}  Nf6 {[%clk 0:03:00]} 11. g4 {[%clk 0:03:01]}  b5 {[%clk 0:02:58]} 12. g5 {[%clk 0:03:01]}  Nd7 {[%clk 0:02:58]} 13. Be3 {[%clk 0:02:58]}  Bb7 {[%clk 0:02:58]} 14. Qe2 {[%clk 0:02:48]}  O-O {[%clk 0:02:33]} 15. Rae1 {[%clk 0:02:45]}  Rfe8 {[%clk 0:02:19]} 16. Qh5 {[%clk 0:02:43]}  g6 {[%clk 0:02:10]} 17. Qh6 {[%clk 0:02:43]}  Bf8 {[%clk 0:02:10]} 18. Qh4 {[%clk 0:02:44]}  Bg7 {[%clk 0:02:08]} 19. f5 {[%clk 0:02:42]}  exf5 {[%clk 0:02:08]} 20. exf5 {[%clk 0:02:41]}  Nce5 {[%clk 0:02:05]} 21. Nd5 {[%clk 0:02:35]}  Qxc2 {[%clk 0:01:53]} 22. f6 {[%clk 0:02:17]}  Bf8 {[%clk 0:01:48]} 23. Nd4 {[%clk 0:02:13]}  Qxb2 {[%clk 0:01:27]} 24. Re2 {[%clk 0:02:12]}  Qa3 {[%clk 0:01:24]} 25. Ne7+ {[%clk 0:01:48]}  Bxe7 {[%clk 0:01:22]} 26. Bxb7 {[%clk 0:01:48]}  Rab8 {[%clk 0:01:17]} 27. Bd5 {[%clk 0:01:47]}  Bd8 {[%clk 0:01:15]} 28. Qh6 {[%clk 0:01:40]}  Nxf6 {[%clk 0:01:11]} 29. gxf6 {[%clk 0:01:37]}  Bxf6 {[%clk 0:01:09]} 30. Rxf6 {[%clk 0:01:36]}  Re7 {[%clk 0:00:58]} 31. Nf5 {[%clk 0:01:21]}  gxf5 {[%clk 0:00:55]} 32. Bd4 {[%clk 0:01:04]}  Qa4 {[%clk 0:00:31]} 33. Rg2+ {[%clk 0:01:02]}  Ng4 {[%clk 0:00:24]} 34. Rg6+ {[%clk 0:01:00]} 1-0


[Site "https://www.chess.com"]

[Event "Titled Tuesday Blitz August 02 Late 2022"]
[White "Shimanov, Aleksandr"]
[Black "Bortnyk, Olexandr"]
[WhiteFideId "4198603"]
[BlackFideId "14120828"]
[WhiteElo "2605"]
[BlackElo "2723"]
[Result "1/2-1/2"]
[Round "09"]
[TimeControl "180+1"]
[Date "2022.08.02"]
[WhiteClock "0:00:06"]
[BlackClock "0:00:10"]

1. d4 {[%clk 0:03:00]}  d6 {[%clk 0:03:00]} 2. e4 {[%clk 0:02:59]}  Nf6 {[%clk 0:03:00]} 3. f3 {[%clk 0:02:58]}  e5 {[%clk 0:03:00]} 4. d5 {[%clk 0:02:57]}  Be7 {[%clk 0:02:59]} 5. Be3 {[%clk 0:02:57]}  c6 {[%clk 0:03:00]} 6. c4 {[%clk 0:02:56]}  a5 {[%clk 0:02:58]} 7. Nc3 {[%clk 0:02:56]}  O-O {[%clk 0:02:58]} 8. Bd3 {[%clk 0:02:49]}  Na6 {[%clk 0:02:58]} 9. Nge2 {[%clk 0:02:48]}  Nd7 {[%clk 0:02:58]} 10. Qd2 {[%clk 0:02:45]}  Ndc5 {[%clk 0:02:45]} 11. Bb1 {[%clk 0:02:22]}  a4 {[%clk 0:02:43]} 12. O-O {[%clk 0:02:19]}  Bd7 {[%clk 0:02:26]} 13. Bc2 {[%clk 0:02:16]}  Re8 {[%clk 0:02:15]} 14. Nxa4 {[%clk 0:02:00]}  cxd5 {[%clk 0:02:08]} 15. Nxc5 {[%clk 0:01:59]}  d4 {[%clk 0:02:06]} 16. Bxd4 {[%clk 0:01:50]}  Nxc5 {[%clk 0:01:50]} 17. Be3 {[%clk 0:01:50]}  b5 {[%clk 0:01:42]} 18. cxb5 {[%clk 0:01:46]}  Bxb5 {[%clk 0:01:42]} 19. Rfd1 {[%clk 0:01:44]}  Ne6 {[%clk 0:01:39]} 20. Nc3 {[%clk 0:01:42]}  Bc6 {[%clk 0:01:30]} 21. b4 {[%clk 0:01:42]}  Nd4 {[%clk 0:01:25]} 22. a4 {[%clk 0:01:32]}  Rc8 {[%clk 0:01:14]} 23. Rdc1 {[%clk 0:00:47]}  d5 {[%clk 0:00:46]} 24. Nxd5 {[%clk 0:00:29]}  Bxd5 {[%clk 0:00:44]} 25. exd5 {[%clk 0:00:29]}  Rxc2 {[%clk 0:00:44]} 26. Rxc2 {[%clk 0:00:28]}  Bxb4 {[%clk 0:00:45]} 27. Qd3 {[%clk 0:00:25]}  Nxc2 {[%clk 0:00:44]} 28. Qxc2 {[%clk 0:00:26]}  Qxd5 {[%clk 0:00:44]} 29. h3 {[%clk 0:00:24]}  h6 {[%clk 0:00:39]} 30. Rd1 {[%clk 0:00:23]}  Qe6 {[%clk 0:00:35]} 31. Rb1 {[%clk 0:00:22]}  Rc8 {[%clk 0:00:21]} 32. Qb3 {[%clk 0:00:18]}  Qxb3 {[%clk 0:00:15]} 33. Rxb3 {[%clk 0:00:18]}  Rc4 {[%clk 0:00:14]} 34. Rb2 {[%clk 0:00:09]}  Ba5 {[%clk 0:00:13]} 35. Ra2 {[%clk 0:00:09]}  f5 {[%clk 0:00:13]} 36. Kf1 {[%clk 0:00:08]}  Kf7 {[%clk 0:00:12]} 37. Ke2 {[%clk 0:00:08]}  Ke6 {[%clk 0:00:13]} 38. Bd2 {[%clk 0:00:09]}  Rc5 {[%clk 0:00:09]} 39. Bxa5 {[%clk 0:00:08]}  Rxa5 {[%clk 0:00:10]} 40. Kd3 {[%clk 0:00:09]}  Kd5 {[%clk 0:00:11]} 41. Kc3 {[%clk 0:00:09]}  e4 {[%clk 0:00:11]} 42. fxe4+ {[%clk 0:00:09]}  Kxe4 {[%clk 0:00:09]} 43. Re2+ {[%clk 0:00:08]}  Kf4 {[%clk 0:00:09]} 44. Kb4 {[%clk 0:00:08]}  Ra8 {[%clk 0:00:09]} 45. a5 {[%clk 0:00:09]}  g5 {[%clk 0:00:10]} 46. Ra2 {[%clk 0:00:07]}  Kg3 {[%clk 0:00:09]} 47. Kb5 {[%clk 0:00:07]}  h5 {[%clk 0:00:08]} 48. a6 {[%clk 0:00:07]}  g4 {[%clk 0:00:08]} 49. hxg4 {[%clk 0:00:08]}  hxg4 {[%clk 0:00:09]} 50. Kb6 {[%clk 0:00:08]}  f4 {[%clk 0:00:10]} 51. Kb7 {[%clk 0:00:08]}  Rf8 {[%clk 0:00:08]} 52. a7 {[%clk 0:00:08]}  f3 {[%clk 0:00:08]} 53. gxf3 {[%clk 0:00:08]}  gxf3 {[%clk 0:00:08]} 54. a8=Q {[%clk 0:00:05]}  Rxa8 {[%clk 0:00:08]} 55. Kxa8 {[%clk 0:00:06]}  f2 {[%clk 0:00:09]} 56. Rxf2 {[%clk 0:00:06]}  Kxf2 {[%clk 0:00:10]} 1/2-1/2


[Site "https://www.chess.com"]

[Event "Titled Tuesday Blitz August 02 Late 2022"]
[White "Svane, Frederik"]
[Black "Salem, A.R. Saleh"]
[WhiteFideId "12923044"]
[BlackFideId "9301348"]
[WhiteElo "2459"]
[BlackElo "2679"]
[Result "0-1"]
[Round "09"]
[TimeControl "180+1"]
[Date "2022.08.02"]
[WhiteClock "0:00:01"]
[BlackClock "0:01:34"]

1. e4 {[%clk 0:03:00]}  c5 {[%clk 0:02:59]} 2. Nf3 {[%clk 0:03:01]}  e6 {[%clk 0:03:00]} 3. g3 {[%clk 0:03:00]}  Nc6 {[%clk 0:03:00]} 4. Bg2 {[%clk 0:03:01]}  d5 {[%clk 0:03:00]} 5. exd5 {[%clk 0:02:59]}  exd5 {[%clk 0:03:01]} 6. O-O {[%clk 0:02:57]}  Nf6 {[%clk 0:03:02]} 7. d4 {[%clk 0:02:57]}  cxd4 {[%clk 0:03:01]} 8. Nxd4 {[%clk 0:02:58]}  Be7 {[%clk 0:03:02]} 9. Nc3 {[%clk 0:02:57]}  O-O {[%clk 0:03:02]} 10. Be3 {[%clk 0:02:53]}  Bg4 {[%clk 0:03:01]} 11. Qd2 {[%clk 0:02:50]}  Qd7 {[%clk 0:03:01]} 12. Nxc6 {[%clk 0:02:25]}  bxc6 {[%clk 0:03:01]} 13. Na4 {[%clk 0:02:25]}  Rfe8 {[%clk 0:02:56]} 14. Rfe1 {[%clk 0:02:22]}  Rad8 {[%clk 0:02:55]} 15. Bc5 {[%clk 0:02:20]}  h5 {[%clk 0:02:50]} 16. Bxe7 {[%clk 0:02:19]}  Rxe7 {[%clk 0:02:51]} 17. Nc5 {[%clk 0:02:18]}  Qd6 {[%clk 0:02:50]} 18. Rxe7 {[%clk 0:02:11]}  Qxe7 {[%clk 0:02:51]} 19. b4 {[%clk 0:01:59]}  Re8 {[%clk 0:02:50]} 20. h3 {[%clk 0:02:00]}  Bf5 {[%clk 0:02:50]} 21. c3 {[%clk 0:01:59]}  Qe5 {[%clk 0:02:43]} 22. a4 {[%clk 0:01:30]}  h4 {[%clk 0:02:17]} 23. g4 {[%clk 0:01:28]}  Bxg4 {[%clk 0:01:52]} 24. hxg4 {[%clk 0:01:26]}  Nxg4 {[%clk 0:01:53]} 25. Nd3 {[%clk 0:00:45]}  Qh2+ {[%clk 0:01:48]} 26. Kf1 {[%clk 0:00:45]}  h3 {[%clk 0:01:48]} 27. Bf3 {[%clk 0:00:46]}  Ne3+ {[%clk 0:01:48]} 28. Qxe3 {[%clk 0:00:39]}  Rxe3 {[%clk 0:01:48]} 29. fxe3 {[%clk 0:00:40]}  Qd2 {[%clk 0:01:47]} 30. Ne1 {[%clk 0:00:03]}  Qxc3 {[%clk 0:01:44]} 31. Ra2 {[%clk 0:00:03]}  Qxb4 {[%clk 0:01:39]} 32. Rh2 {[%clk 0:00:03]}  Qh4 {[%clk 0:01:36]} 33. Bg2 {[%clk 0:00:01]}  hxg2+ {[%clk 0:01:34]} 0-1


[Site "https://www.chess.com"]